bitfinex/quotes_SOLUSD_20230116
["timestamp","ask_amount","ask_price","bid_price","bid_amount"]
[1673903488087,20.0,23.592,23.57,16.24]
[1673903488395,31.82,23.591,23.57,16.24]
[1673903488580,20.0,23.59,23.57,16.24]
[1673903488793,31.82,23.589,23.57,37.70196354]
[1673903489001,20.0,23.588,23.57,37.70196354]
[1673903489229,31.82,23.587,23.571,20.0]
[1673903489427,31.82,23.589,23.571,41.46196354]
[1673903489637,31.82,23.59,23.573,20.0]
[1673903489863,20.0,23.589,23.574,17.0]
[1673903490058,31.82,23.588,23.574,38.46196354]
[1673903490266,31.82,23.588,23.575,21.46196354]
[1673903490488,31.82,23.588,23.576,17.0]
[1673903491735,31.82,23.588,23.57,16.24]
[1673903491945,20.0,23.587,23.571,21.46196354]
[1673903492379,20.0,23.585,23.571,21.46196354]
[1673903493233,31.83,23.584,23.57,16.24]
[1673903494066,20.0,23.585,23.57,16.24]
[1673903494290,31.83,23.584,23.57,16.24]
[1673903494498,31.83,23.584,23.571,17.0]
[1673903494721,20.0,23.583,23.571,17.0]
[1673903497568,20.0,23.583,23.57,16.24]
[1673903497778,20.0,23.583,23.56,16.26]
[1673903498009,20.0,23.581,23.563,20.0]
[1673903498587,31.83,23.58,23.563,20.0]
[1673903498924,17.0,23.579,23.563,20.0]
[1673903499131,31.83,23.578,23.563,20.0]
[1673903499543,20.0,23.577,23.563,20.0]
[1673903499754,31.84,23.576,23.563,20.0]
[1673903499963,31.84,23.576,23.551,20.0]
[1673903500183,61.89135,23.575,23.55,16.24]
[1673903500383,31.84,23.574,23.55,16.24]
[1673903500612,17.0,23.573,23.55,16.24]
[1673903500794,17.0,23.573,23.544,40.0]
[1673903500795,31.84,23.572,23.544,40.0]
[1673903501008,31.84,23.572,23.55,16.35]
[1673903501009,149.8641,23.572,23.55,16.35]
[1673903501219,154.75545,23.572,23.55,16.35]
[1673903501654,20.0,23.571,23.551,17.0]
[1673903501871,31.84,23.57,23.551,17.0]
[1673903502066,20.0,23.569,23.551,17.0]
[1673903502275,20.0,23.567,23.551,17.0]
[1673903502472,31.85,23.566,23.551,17.0]
[1673903503329,31.85,23.566,23.552,20.0]
[1673903503543,31.85,23.568,23.553,17.0]
[1673903503965,31.85,23.568,23.551,17.0]
[1673903504187,20.0,23.567,23.551,17.0]
[1673903504422,31.85,23.566,23.551,17.0]
[1673903504999,31.85,23.566,23.55,16.35]
[1673903506272,20.0,23.565,23.55,16.35]
[1673903506600,20.0,23.563,23.55,16.35]
[1673903506807,31.85,23.562,23.55,16.35]
[1673903507336,20.0,23.563,23.551,17.0]
[1673903507540,31.85,23.562,23.551,17.0]
[1673903507938,20.0,23.563,23.551,17.0]
[1673903510612,51.85,23.568,23.551,17.0]
[1673903510820,20.0,23.568,23.551,17.0]
[1673903511439,20.0,23.568,23.55,16.35]
[1673903511764,31.85,23.567,23.55,16.35]
[1673903512308,20.0,23.566,23.55,16.35]
[1673903512499,31.85,23.565,23.55,16.35]
[1673903512906,20.0,23.566,23.551,17.0]
[1673903513536,31.85,23.568,23.551,17.0]
[1673903513769,149.8641,23.572,23.56,16.32]
[1673903513976,9.88820593,23.573,23.561,17.0]
[1673903514187,51.84,23.574,23.561,17.0]
[1673903514613,61.72820593,23.574,23.561,17.0]
[1673903515341,61.72820593,23.574,23.56,16.32]
[1673903518055,61.72820593,23.574,23.55,16.21]
[1673903518269,37.0,23.573,23.55,16.21]
[1673903518485,31.84,23.572,23.55,16.21]
[1673903518702,20.0,23.571,23.551,17.0]
[1673903518924,20.0,23.569,23.551,17.0]
[1673903519238,20.0,23.567,23.551,17.0]
[1673903519445,31.85,23.566,23.551,17.0]
[1673903519662,20.0,23.565,23.551,17.0]
[1673903520912,108.1081,23.569,23.56,16.35]
[1673903521236,31.84,23.572,23.561,17.0]
[1673903521422,31.84,23.576,23.561,17.0]
[1673903522061,20.0,23.572,23.561,17.0]
[1673903526469,20.0,23.574,23.561,17.0]
[1673903526680,20.0,23.574,23.561,61.80014097]
[1673903526919,20.0,23.574,23.561,17.0]
[1673903527952,20.0,23.574,23.561,61.80014097]
[1673903528691,20.0,23.574,23.56,16.32]
[1673903529936,20.0,23.574,23.561,17.0]
[1673903530359,20.0,23.574,23.56,16.32]
[1673903531100,31.84,23.573,23.56,16.32]
[1673903531434,51.84,23.574,23.56,16.32]
[1673903531745,51.84,23.574,23.561,17.0]
[1673903532165,61.72820593,23.574,23.561,17.0]
[1673903537103,29.88820593,23.574,23.561,17.0]
[1673903537520,61.72820593,23.574,23.561,17.0]
[1673903538784,29.88820593,23.574,23.561,17.0]
[1673903538974,61.72820593,23.574,23.561,17.0]
[1673903539408,29.88820593,23.574,23.561,17.0]
[1673903539620,31.84,23.573,23.561,17.0]
[1673903539833,20.0,23.572,23.561,17.0]
[1673903542994,20.0,23.572,23.56,16.32]
[1673903543300,20.0,23.57,23.56,16.32]
[1673903544339,20.0,23.57,23.561,17.0]
[1673903545086,20.0,23.57,23.55,16.24]
[1673903545293,31.85,23.569,23.55,16.24]
[1673903545508,20.0,23.568,23.55,16.24]
[1673903545719,20.0,23.566,23.55,16.24]
[1673903545918,31.85,23.565,23.55,16.24]
[1673903546342,20.0,23.564,23.551,17.0]
[1673903546550,31.85,23.563,23.551,17.0]
[1673903547702,20.0,23.562,23.551,17.0]
[1673903549700,31.86,23.561,23.551,17.0]
[1673903549930,20.0,23.562,23.551,17.0]
[1673903550450,20.0,23.562,23.55,16.24]
[1673903553162,31.86,23.561,23.543,115.3143]
[1673903553385,20.0,23.56,23.544,37.0]
[1673903554549,20.0,23.56,23.545,21.46196354]
[1673903554871,20.0,23.56,23.546,37.0]
[1673903555291,20.0,23.56,23.546,58.46196354]
[1673903558765,20.0,23.56,23.546,37.0]
[1673903559914,31.86,23.559,23.54,16.31]
[1673903560444,20.0,23.558,23.54,16.31]
[1673903560659,31.86,23.557,23.54,16.31]
[1673903560843,31.86,23.557,23.54,37.77196354]
[1673903561704,20.0,23.555,23.54,37.77196354]
[1673903562110,51.86,23.555,23.54,37.77196354]
[1673903562440,51.86,23.555,23.54,16.31]
[1673903562650,51.86,23.555,23.541,17.0]
[1673903563363,20.0,23.555,23.541,17.0]
[1673903563794,20.0,23.555,23.54,16.31]
[1673903564221,31.87,23.554,23.54,16.31]
[1673903564852,24.89135,23.555,23.54,16.31]
[1673903565173,20.0,23.555,23.54,37.77196354]
[1673903565573,20.0,23.555,23.541,17.0]
[1673903565907,51.86,23.555,23.541,17.0]
[1673903566121,20.0,23.555,23.541,17.0]
[1673903567590,51.86,23.555,23.541,17.0]
[1673903569165,31.86,23.555,23.541,17.0]
[1673903569379,108.1864,23.556,23.542,20.0]
[1673903569571,108.1864,23.556,23.543,37.0]
[1673903569783,108.1864,23.556,23.55,16.29]
[1673903569991,108.1864,23.556,23.551,17.0]
[1673903570625,51.85,23.568,23.551,17.0]
[1673903570839,51.85,23.568,23.551,38.46196354]
[1673903571159,20.0,23.562,23.551,17.0]
[1673903571483,20.0,23.56,23.551,17.0]
[1673903572323,31.86,23.559,23.545,21.46196354]
[1673903572513,31.86,23.559,23.546,37.0]
[1673903572721,20.0,23.56,23.546,37.0]
[1673903573589,20.0,23.56,23.546,58.46196354]
[1673903574504,20.0,23.56,23.546,37.0]
[1673903575255,20.0,23.56,23.546,58.46196354]
[1673903576635,20.0,23.56,23.55,16.29]
[1673903576819,20.0,23.56,23.551,17.0]
[1673903577572,20.0,23.56,23.546,20.0]
[1673903577800,31.86,23.559,23.541,20.0]
[1673903577983,20.0,23.558,23.541,20.0]
[1673903578311,20.0,23.558,23.542,21.46196354]
[1673903578522,20.0,23.558,23.543,20.0]
[1673903578919,20.0,23.558,23.544,38.46196354]
[1673903579133,20.0,23.558,23.545,20.0]
[1673903579347,20.0,23.558,23.546,17.0]
[1673903579792,20.0,23.558,23.547,20.0]
[1673903580097,20.0,23.558,23.548,17.0]
[1673903580290,20.0,23.558,23.54,16.39]
[1673903580500,31.86,23.557,23.54,37.85196354]
[1673903580718,20.0,23.556,23.54,37.85196354]
[1673903581139,128.7389,23.556,23.54,37.85196354]
[1673903581889,128.7389,23.556,23.541,17.0]
[1673903582413,20.0,23.554,23.541,17.0]
[1673903583564,31.87,23.553,23.541,17.0]
[1673903583777,128.7389,23.556,23.541,38.46196354]
[1673903585149,31.86,23.555,23.541,38.46196354]
[1673903585455,20.0,23.554,23.541,38.46196354]
[1673903586508,20.0,23.554,23.541,17.0]
[1673903586727,20.0,23.554,23.54,37.85196354]
[1673903587647,51.86,23.555,23.54,37.85196354]
[1673903587858,20.0,23.555,23.54,37.85196354]
[1673903588182,20.0,23.555,23.541,17.0]
[1673903588814,20.0,23.554,23.53,130.8044]
[1673903589028,31.87,23.553,23.53,16.24]
[1673903589219,21.89135,23.552,23.53,16.24]
[1673903589435,51.87,23.551,23.53,16.24]
[1673903590166,51.87,23.551,23.531,17.0]
[1673903590377,17.0,23.55,23.53,16.24]
[1673903590581,31.87,23.549,23.53,16.24]
[1673903591339,20.0,23.548,23.53,16.24]
[1673903591548,31.88,23.547,23.53,37.70196354]
[1673903591737,31.87,23.55,23.531,17.0]
[1673903592061,31.87,23.55,23.532,41.46196354]
[1673903592277,31.87,23.55,23.533,17.0]
[1673903592601,20.0,23.549,23.534,20.0]
[1673903592807,20.0,23.549,23.535,17.0]
[1673903593224,20.0,23.547,23.535,17.0]
[1673903593865,20.0,23.547,23.53,37.70196354]
[1673903594062,20.0,23.547,23.532,21.46196354]
[1673903594267,20.0,23.549,23.532,21.46196354]
[1673903594480,20.0,23.551,23.532,21.46196354]
[1673903594706,20.0,23.551,23.54,16.24]
[1673903595210,20.0,23.551,23.541,17.0]
[1673903597437,20.0,23.551,23.54,16.24]
[1673903597648,20.0,23.551,23.536,21.46196354]
[1673903597855,20.0,23.551,23.537,37.0]
[1673903598067,20.0,23.551,23.537,17.0]
[1673903598387,20.0,23.551,23.53,135.6714]
[1673903598621,31.87,23.55,23.531,20.0]
[1673903598912,20.0,23.549,23.531,20.0]
[1673903599100,20.0,23.547,23.53,135.6714]
[1673903599311,31.88,23.546,23.53,135.6714]
[1673903599751,20.0,23.547,23.53,135.6714]
[1673903600156,20.0,23.547,23.531,17.0]
[1673903600681,31.88,23.546,23.53,16.31]
[1673903600890,20.0,23.545,23.53,16.31]
[1673903601954,20.0,23.545,23.531,17.0]
[1673903602162,31.88,23.544,23.531,17.0]
[1673903602571,20.0,23.545,23.531,17.0]
[1673903603007,20.0,23.549,23.532,21.46196354]
[1673903603232,20.0,23.549,23.54,16.31]
[1673903603625,20.0,23.549,23.541,17.0]
[1673903605219,20.0,23.549,23.54,16.31]
[1673903609401,20.0,23.551,23.541,17.0]
[1673903609611,20.0,23.553,23.541,17.0]
[1673903611528,51.87,23.553,23.542,33.8428743]
[1673903611717,20.0,23.553,23.543,17.0]
[1673903612256,31.85,23.563,23.544,41.46196354]
[1673903612577,150.1105,23.565,23.55,16.31]
[1673903612974,150.1105,23.565,23.551,38.46196354]
[1673903613409,150.1105,23.565,23.552,21.46196354]
[1673903614452,150.1105,23.565,23.553,17.0]
[1673903614989,150.1105,23.565,23.554,21.46196354]
[1673903615514,118.2605,23.565,23.555,17.0]
[1673903615933,118.2605,23.565,23.551,21.46196354]
[1673903616123,118.2605,23.565,23.556,21.46196354]
[1673903617834,20.0,23.57,23.557,17.0]
[1673903618058,20.0,23.57,23.56,16.24]
[1673903618248,20.0,23.57,23.561,17.0]
[1673903618462,20.0,23.57,23.561,38.46196354]
[1673903618668,20.0,23.57,23.561,21.46196354]
[1673903618883,20.0,23.57,23.56,16.24]
[1673903619103,20.0,23.57,23.561,17.0]
[1673903619311,20.0,23.57,23.561,38.46196354]
[1673903619520,20.0,23.573,23.562,21.46196354]
[1673903619712,20.0,23.574,23.563,17.0]
[1673903619921,130.0311,23.58,23.565,20.0]
[1673903620136,130.0311,23.58,23.57,16.31]
[1673903620342,130.0311,23.58,23.571,17.0]
[1673903620557,130.0311,23.58,23.571,38.46196354]
[1673903620768,130.0311,23.58,23.571,78.14209784]
[1673903620972,130.0311,23.58,23.572,20.96196354]
[1673903621301,130.0311,23.58,23.573,39.6801343]
[1673903621618,20.0,23.58,23.574,21.46196354]
[1673903621833,20.0,23.58,23.57,16.31]
[1673903622022,20.0,23.58,23.566,39.6801343]
[1673903622239,20.0,23.58,23.57,21.46196354]
[1673903623630,20.0,23.58,23.567,37.0]
[1673903623819,20.0,23.58,23.568,21.46196354]
[1673903624030,20.0,23.58,23.569,20.0]
[1673903624451,20.0,23.58,23.57,54.77196354]
[1673903624866,20.0,23.58,23.571,21.46196354]
[1673903625499,20.0,23.58,23.572,17.0]
[1673903625921,20.0,23.58,23.573,21.46196354]
[1673903627411,20.0,23.58,23.574,17.0]
[1673903627813,20.0,23.58,23.575,21.46196354]
[1673903631703,20.0,23.58,23.57,16.31]
[1673903631913,20.0,23.58,23.571,21.46196354]
[1673903632148,51.83,23.58,23.571,21.46196354]
[1673903633606,51.83,23.58,23.569,20.0]
[1673903633817,51.83,23.58,23.569,21.46196354]
[1673903634134,51.83,23.58,23.56,16.25]
[1673903634329,20.0,23.578,23.56,16.25]
[1673903634538,31.83,23.577,23.56,16.25]
[1673903634749,20.0,23.575,23.56,16.25]
[1673903634970,51.84,23.575,23.56,16.25]
[1673903635191,20.0,23.575,23.56,16.25]
[1673903635500,31.84,23.574,23.56,16.25]
[1673903635711,20.0,23.573,23.56,16.25]
[1673903636122,20.0,23.573,23.561,21.46196354]
[1673903638212,20.0,23.573,23.562,17.0]
[1673903638652,20.0,23.573,23.563,21.46196354]
[1673903638946,20.0,23.573,23.564,17.0]
[1673903639268,20.0,23.573,23.565,21.46196354]
[1673903640043,51.83,23.581,23.565,21.46196354]
[1673903640347,51.83,23.581,23.57,16.31]
[1673903640747,20.0,23.581,23.571,21.46196354]
[1673903642453,20.0,23.578,23.571,21.46196354]
[1673903642764,20.0,23.578,23.56,16.25]
[1673903642955,20.0,23.578,23.569,21.46196354]
[1673903643510,20.0,23.578,23.56,16.25]
[1673903644025,20.0,23.578,23.561,38.46196354]
[1673903644433,20.0,23.578,23.562,21.46196354]
[1673903644648,20.0,23.578,23.563,17.0]
[1673903645059,20.0,23.578,23.564,21.46196354]
[1673903645285,20.0,23.578,23.565,17.0]
[1673903645699,20.0,23.578,23.566,21.46196354]
[1673903646558,20.0,23.576,23.566,21.46196354]
[1673903650108,20.0,23.576,23.56,16.25]
[1673903650334,20.0,23.576,23.561,17.0]
[1673903651284,20.0,23.576,23.56,16.25]
[1673903651493,20.0,23.576,23.562,21.46196354]
[1673903651707,20.0,23.576,23.563,17.0]
[1673903652119,20.0,23.576,23.564,21.46196354]
[1673903652332,20.0,23.576,23.565,17.0]
[1673903652763,20.0,23.581,23.57,16.31]
[1673903652951,20.0,23.584,23.571,17.0]
[1673903653155,20.0,23.584,23.571,38.46196354]
[1673903653382,20.0,23.584,23.572,21.46196354]
[1673903653598,20.0,23.584,23.573,17.0]
[1673903654016,20.0,23.584,23.573,38.46196354]
[1673903654637,20.0,23.584,23.573,79.63146451]
[1673903655268,141.3458,23.592,23.574,106.4101878]
[1673903655610,141.3458,23.592,23.58,16.39]
[1673903655782,109.5358,23.592,23.58,16.39]
[1673903656118,109.5358,23.592,23.581,17.0]
[1673903656335,129.5358,23.592,23.581,17.0]
[1673903659907,20.0,23.592,23.581,17.0]
[1673903661379,20.0,23.592,23.58,16.39]
[1673903661593,20.0,23.592,23.579,21.46196354]
[1673903661801,20.0,23.592,23.58,17.0]
[1673903664959,20.0,23.592,23.57,57.55950097]
[1673903665168,20.0,23.589,23.571,21.46196354]
[1673903665380,20.0,23.587,23.571,21.46196354]
[1673903665592,31.82,23.586,23.571,21.46196354]
[1673903665802,20.0,23.585,23.571,21.46196354]
[1673903666832,20.0,23.585,23.572,17.0]
[1673903667063,20.0,23.585,23.573,20.0]
[1673903667251,20.0,23.585,23.574,17.0]
[1673903667458,20.0,23.587,23.58,16.31]
[1673903668111,20.0,23.591,23.58,37.77196354]
[1673903668301,20.0,23.591,23.581,58.16950097]
[1673903668738,20.0,23.591,23.582,62.63146451]
[1673903668947,20.0,23.591,23.583,17.0]
[1673903669147,20.0,23.591,23.583,58.16950097]
[1673903669357,20.0,23.591,23.584,41.16950097]
[1673903669568,20.0,23.591,23.585,17.0]
[1673903670218,20.0,23.591,23.585,58.16950097]
[1673903670745,20.0,23.591,23.585,41.16950097]
[1673903671571,20.0,23.591,23.58,16.31]
[1673903671785,20.0,23.591,23.573,20.0]
[1673903671994,31.82,23.59,23.571,20.0]
[1673903672317,20.0,23.589,23.571,20.0]
[1673903673161,20.0,23.587,23.571,20.0]
[1673903673560,20.0,23.587,23.572,42.92392708]
[1673903673771,20.0,23.587,23.58,16.31]
[1673903680936,20.0,23.587,23.58,37.77196354]
[1673903682101,20.0,23.587,23.581,17.0]
[1673903682406,20.0,23.587,23.582,21.46196354]
[1673903686088,20.0,23.587,23.58,16.31]
[1673903686399,31.82,23.586,23.576,21.46196354]
[1673903686831,20.0,23.585,23.576,21.46196354]
[1673903687031,20.0,23.585,23.57,16.24]
[1673903687230,31.83,23.584,23.571,17.0]
[1673903687439,31.83,23.584,23.571,38.46196354]
[1673903687664,31.83,23.584,23.572,21.46196354]
[1673903687878,20.0,23.583,23.572,21.46196354]
[1673903688501,31.83,23.582,23.572,21.46196354]
[1673903688712,20.0,23.581,23.572,21.46196354]
[1673903689674,20.0,23.581,23.57,16.24]
[1673903689878,20.0,23.581,23.571,21.46196354]
[1673903690510,20.0,23.581,23.57,16.24]
[1673903690925,20.0,23.581,23.571,21.46196354]
[1673903691566,20.0,23.581,23.56,16.25]
[1673903691767,31.83,23.58,23.564,21.46196354]
[1673903691975,17.0,23.579,23.565,20.0]
[1673903692182,20.0,23.577,23.565,20.0]
[1673903692825,20.0,23.577,23.561,20.0]
[1673903693237,20.0,23.577,23.561,41.46196354]
[1673903693678,20.0,23.577,23.562,17.0]
[1673903693859,20.0,23.577,23.563,20.0]
[1673903695439,20.0,23.577,23.564,38.46196354]
[1673903695650,20.0,23.577,23.564,59.92392708]
[1673903695855,20.0,23.577,23.565,20.0]
[1673903696088,20.0,23.577,23.565,41.46196354]
[1673903696294,20.0,23.577,23.566,21.46196354]
[1673903696486,20.0,23.577,23.567,20.0]
[1673903697020,20.0,23.577,23.568,21.46196354]
[1673903697232,20.0,23.577,23.569,20.0]
[1673903697657,20.0,23.577,23.57,42.92392708]
[1673903697871,20.0,23.577,23.57,21.46196354]
[1673903699341,20.0,23.577,23.571,17.0]
[1673903699954,20.0,23.577,23.572,21.46196354]
[1673903700371,20.0,23.578,23.572,21.46196354]
[1673903700372,21.91876456,23.617,23.573,17.0]
[1673903700715,51.81,23.592,23.58,16.24]
[1673903701025,51.81,23.592,23.581,38.46196354]
[1673903701026,20.0,23.592,23.581,38.46196354]
[1673903701340,20.0,23.592,23.582,21.46196354]
[1673903701549,20.0,23.592,23.583,17.0]
[1673903701756,20.0,23.592,23.582,21.46196354]
[1673903701964,51.81,23.592,23.584,21.46196354]
[1673903702167,20.0,23.592,23.584,21.46196354]
[1673903703734,20.0,23.592,23.581,58.75315763]
[1673903703949,20.0,23.592,23.582,21.46196354]
[1673903704162,20.0,23.592,23.583,17.0]
[1673903704482,20.0,23.592,23.584,21.46196354]
[1673903705455,20.0,23.592,23.585,17.0]
[1673903706055,20.0,23.592,23.585,38.46196354]
[1673903708497,31.8,23.605,23.586,20.0]
[1673903708711,31.8,23.605,23.59,16.39]
[1673903708909,31.8,23.605,23.591,17.0]
[1673903708910,20.0,23.604,23.591,17.0]
[1673903709117,31.8,23.603,23.591,82.58042784]
[1673903709332,20.0,23.604,23.592,65.58042784]
[1673903709651,20.0,23.604,23.593,81.1184643]
[1673903709864,20.0,23.604,23.593,102.58042784]
[1673903710080,20.0,23.604,23.594,44.1184643]
[1673903710271,20.0,23.604,23.595,37.0]
[1673903710480,20.0,23.604,23.595,58.46196354]
[1673903710710,20.0,23.604,23.596,65.58042784]
[1673903710921,20.0,23.604,23.597,20.0]
[1673903711119,20.0,23.604,23.597,41.46196354]
[1673903711548,20.0,23.604,23.597,20.0]
[1673903711867,20.0,23.604,23.597,21.46196354]
[1673903712075,20.0,23.604,23.598,20.0]
[1673903712469,20.0,23.604,23.599,21.46196354]
[1673903712894,20.0,23.604,23.6,17.0]
[1673903713336,20.0,23.604,23.6,38.46196354]
[1673903713520,20.0,23.607,23.6,38.46196354]
[1673903713733,31.79,23.612,23.6,54.70196354]
[1673903713977,20.0,23.613,23.6,54.70196354]
[1673903714170,20.0,23.613,23.601,44.1184643]
[1673903714375,31.78,23.619,23.602,37.0]
[1673903714583,145.8518,23.632,23.61,16.24]
[1673903714901,20.0,23.631,23.61,16.24]
[1673903715119,31.76,23.63,23.61,16.24]
[1673903715334,31.76,23.63,23.603,44.1184643]
[1673903715657,31.78,23.619,23.605,21.46196354]
[1673903715847,20.0,23.618,23.606,17.0]
[1673903716061,51.78,23.617,23.606,17.0]
[1673903716272,51.78,23.617,23.606,38.46196354]
[1673903716689,20.0,23.629,23.61,16.31]
[1673903716909,31.77,23.628,23.611,17.0]
[1673903717122,31.77,23.628,23.611,82.58042784]
[1673903717335,31.77,23.628,23.612,65.58042784]
[1673903717645,31.77,23.628,23.612,21.46196354]
[1673903717862,20.0,23.627,23.613,17.0]
[1673903718054,31.77,23.626,23.613,17.0]
[1673903718261,20.0,23.625,23.6,16.41]
[1673903718484,20.0,23.627,23.6,16.41]
[1673903718485,20.0,23.623,23.6,16.41]
[1673903718678,31.77,23.622,23.602,21.46196354]
[1673903719013,20.0,23.621,23.61,16.31]
[1673903719329,31.77,23.622,23.611,21.46196354]
[1673903719641,20.0,23.623,23.611,62.04543248]
[1673903719831,20.0,23.623,23.612,17.0]
[1673903720041,20.0,23.623,23.612,38.46196354]
[1673903720252,20.0,23.623,23.613,21.46196354]
[1673903720485,20.0,23.623,23.614,17.0]
[1673903720884,20.0,23.623,23.614,38.46196354]
[1673903726586,20.0,23.623,23.615,42.92225561]
[1673903726804,31.77,23.626,23.616,16.89893042]
[1673903726986,20.0,23.627,23.62,16.31]
[1673903727525,20.0,23.627,23.621,21.46196354]
[1673903728904,20.0,23.627,23.622,17.0]
[1673903729109,20.0,23.629,23.622,17.0]
[1673903729430,20.0,23.629,23.622,81.38421915]
[1673903732689,20.0,23.629,23.622,123.81439265]
[1673903733292,20.0,23.629,23.622,106.81439265]
[1673903733518,20.0,23.629,23.62,16.15]
[1673903733932,31.77,23.628,23.62,16.15]
[1673903734140,20.0,23.627,23.61,16.19]
[1673903734353,20.0,23.627,23.614,42.92225561]
[1673903734680,20.0,23.627,23.61,16.19]
[1673903734900,48.77,23.626,23.61,16.19]
[1673903735215,48.77,23.626,23.6,65.16]
[1673903735216,20.0,23.625,23.604,21.46196354]
[1673903735397,53.66135,23.624,23.604,21.46196354]
[1673903735614,24.89135,23.623,23.6,16.21]
[1673903735822,48.77,23.622,23.6,16.21]
[1673903736040,31.77,23.622,23.6,16.21]
[1673903736470,20.0,23.62,23.6,16.21]
[1673903736789,20.0,23.618,23.601,21.46196354]
[1673903736976,31.78,23.617,23.601,21.46196354]
[1673903737513,20.0,23.616,23.602,17.0]
[1673903737738,31.78,23.615,23.602,17.0]
[1673903737920,31.78,23.615,23.603,21.46196354]
[1673903738130,20.0,23.614,23.603,21.46196354]
[1673903738567,20.0,23.614,23.6,16.21]
[1673903738887,20.0,23.614,23.601,21.46196354]
[1673903740646,20.0,23.614,23.6,16.21]
[1673903741069,20.0,23.614,23.6,37.67196354]
[1673903742757,20.0,23.614,23.601,17.0]
[1673903743692,20.0,23.614,23.6,16.21]
[1673903744227,20.0,23.614,23.597,21.46196354]
[1673903744438,20.0,23.612,23.598,20.0]
[1673903744754,20.0,23.612,23.59,16.23]
[1673903744960,53.68135,23.611,23.581,116.9697]
[1673903745170,4.89135,23.61,23.586,21.46196354]
[1673903745397,20.0,23.608,23.586,21.46196354]
[1673903745604,20.0,23.606,23.586,21.46196354]
[1673903745794,31.8,23.605,23.586,21.46196354]
[1673903746005,20.0,23.604,23.586,21.46196354]
[1673903746239,31.8,23.603,23.587,37.0]
[1673903746429,20.0,23.602,23.587,37.0]
[1673903746641,20.0,23.602,23.58,16.13]
[1673903746860,20.0,23.6,23.584,21.46196354]
[1673903747806,31.8,23.599,23.584,21.46196354]
[1673903748001,20.0,23.598,23.585,20.0]
[1673903749299,20.0,23.598,23.581,21.46196354]
[1673903749300,31.81,23.597,23.581,21.46196354]
[1673903749508,20.0,23.596,23.581,21.46196354]
[1673903749898,20.0,23.596,23.58,16.34]
[1673903750342,31.81,23.595,23.58,16.34]
[1673903750542,20.0,23.594,23.58,16.34]